[Event "*** Titled Tuesday Blitz"]
[Site "Chess.com"]
[Date "2019.04.02"]
[Round "9"]
[White "djogrodek1"]
[Black "santosalberto1987"]
[Result "1-0"]
[WhiteElo "2535"]
[BlackElo "2424"]
[TimeControl "180+2"]
[EndTime "16:00:53 PDT"]
[Termination "djogrodek1 won by resignation"]

1. e4 {[%clk 0:03:01.9]} 1... e6 {[%clk 0:03:00]} 2. d4 {[%clk 0:03:02.1]} 2...
d5 {[%clk 0:03:01.1]} 3. Nc3 {[%clk 0:03:03.7]} 3... Nf6 {[%clk 0:03:02]} 4. e5
{[%clk 0:03:00.8]} 4... Nfd7 {[%clk 0:03:02.9]} 5. f4 {[%clk 0:03:01.3]} 5... c5
{[%clk 0:03:03.9]} 6. Nf3 {[%clk 0:03:02.7]} 6... Nc6 {[%clk 0:03:05.2]} 7. Be3
{[%clk 0:03:02.9]} 7... Qb6 {[%clk 0:03:06.7]} 8. Na4 {[%clk 0:03:02]} 8... Qa5+
{[%clk 0:03:07.6]} 9. c3 {[%clk 0:03:02.1]} 9... b6 {[%clk 0:03:08.7]} 10. Bd2
{[%clk 0:02:41.3]} 10... c4 {[%clk 0:03:09.3]} 11. b4 {[%clk 0:02:40.9]} 11...
Qa6 {[%clk 0:03:10.5]} 12. a3 {[%clk 0:02:40.4]} 12... Qb7 {[%clk 0:03:05.5]}
13. g3 {[%clk 0:02:36]} 13... b5 {[%clk 0:03:05.8]} 14. Nc5 {[%clk 0:02:28.4]}
14... Nxc5 {[%clk 0:03:06.6]} 15. bxc5 {[%clk 0:02:23.2]} 15... Be7 {[%clk
0:03:06.3]} 16. Bh3 {[%clk 0:02:22.9]} 16... Bd7 {[%clk 0:03:02.3]} 17. O-O
{[%clk 0:02:20.1]} 17... O-O {[%clk 0:03:01.7]} 18. Qc2 {[%clk 0:02:16.9]} 18...
a5 {[%clk 0:02:53]} 19. Rab1 {[%clk 0:02:04.2]} 19... Qc7 {[%clk 0:02:45.7]} 20.
f5 {[%clk 0:02:04]} 20... exf5 {[%clk 0:02:45]} 21. Bxf5 {[%clk 0:02:05.9]}
21... Bxf5 {[%clk 0:02:41]} 22. Qxf5 {[%clk 0:02:07.8]} 22... Rab8 {[%clk
0:02:30.1]} 23. e6 {[%clk 0:01:58.8]} 23... Qd8 {[%clk 0:02:22.5]} 24. Ng5
{[%clk 0:01:52.3]} 24... Bxg5 {[%clk 0:02:21.1]} 25. exf7+ {[%clk 0:01:53.5]}
25... Kh8 {[%clk 0:02:19.7]} 26. Bxg5 {[%clk 0:01:54.9]} 26... Qc7 {[%clk
0:02:13.1]} 27. Bf4 {[%clk 0:01:53.5]} 1-0

[Event "*** Titled Tuesday Blitz"]
[Site "Chess.com"]
[Date "2019.04.02"]
[Round "9"]
[White "Annawel"]
[Black "StephenDedalus83"]
[Result "1-0"]
[WhiteElo "2886"]
[BlackElo "2663"]
[TimeControl "180+2"]
[EndTime "16:01:11 PDT"]
[Termination "Annawel won by resignation"]

1. e4 {[%clk 0:03:01.9]} 1... c5 {[%clk 0:03:00.2]} 2. Nf3 {[%clk 0:03:02.8]}
2... d6 {[%clk 0:03:01.3]} 3. d4 {[%clk 0:03:04.3]} 3... cxd4 {[%clk 0:03:03.1]}
4. Nxd4 {[%clk 0:03:06.2]} 4... Nf6 {[%clk 0:03:04.5]} 5. Nc3 {[%clk 0:03:07.6]}
5... g6 {[%clk 0:03:06]} 6. g3 {[%clk 0:03:03.8]} 6... Nc6 {[%clk 0:03:04.9]} 7.
Bg2 {[%clk 0:03:01.3]} 7... Nxd4 {[%clk 0:03:03.2]} 8. Qxd4 {[%clk 0:03:03.2]}
8... Bg7 {[%clk 0:03:04.5]} 9. O-O {[%clk 0:03:04.4]} 9... O-O {[%clk
0:03:03.2]} 10. a4 {[%clk 0:03:04.1]} 10... Ng4 {[%clk 0:02:53.4]} 11. Qb4
{[%clk 0:02:53.1]} 11... a5 {[%clk 0:02:50.4]} 12. Qb3 {[%clk 0:02:51.5]} 12...
Rb8 {[%clk 0:02:36.7]} 13. h3 {[%clk 0:02:48.8]} 13... Ne5 {[%clk 0:02:36.5]}
14. Be3 {[%clk 0:02:49.2]} 14... Be6 {[%clk 0:02:36.8]} 15. Nd5 {[%clk
0:02:50.1]} 15... Bxd5 {[%clk 0:02:10.3]} 16. exd5 {[%clk 0:02:50.8]} 16... Qc8
{[%clk 0:02:07]} 17. Ba7 {[%clk 0:02:18.4]} 17... Ra8 {[%clk 0:02:07]} 18. Bd4
{[%clk 0:02:18]} 18... Qc4 {[%clk 0:01:58.5]} 19. Qxc4 {[%clk 0:02:17.9]} 19...
Nxc4 {[%clk 0:01:58.8]} 20. Bxg7 {[%clk 0:02:19.7]} 20... Kxg7 {[%clk
0:01:59.5]} 21. b3 {[%clk 0:02:21.4]} 21... Nb6 {[%clk 0:01:58.5]} 22. Rfe1
{[%clk 0:02:22.2]} 22... Kf6 {[%clk 0:01:59.2]} 23. h4 {[%clk 0:02:13.2]} 23...
Rac8 {[%clk 0:01:56]} 24. c4 {[%clk 0:02:14]} 24... Rc7 {[%clk 0:01:55.4]} 25.
Bh3 {[%clk 0:02:11.1]} 25... Re8 {[%clk 0:01:48.2]} 26. Re3 {[%clk 0:02:11.2]}
26... Kg7 {[%clk 0:01:48]} 27. Rae1 {[%clk 0:02:12.3]} 27... f5 {[%clk
0:01:48.9]} 28. g4 {[%clk 0:01:48.1]} 28... f4 {[%clk 0:01:48.3]} 29. Re4 {[%clk
0:01:47.3]} 29... Nd7 {[%clk 0:01:48.4]} 30. Rxe7+ {[%clk 0:01:47.5]} 30... Rxe7
{[%clk 0:01:46.5]} 31. Rxe7+ {[%clk 0:01:49.4]} 31... Kf8 {[%clk 0:01:45.2]} 32.
Rxh7 {[%clk 0:01:50.4]} 1-0

[Event "*** Titled Tuesday Blitz"]
[Site "Chess.com"]
[Date "2019.04.02"]
[Round "9"]
[White "BvsN"]
[Black "JAN2404"]
[Result "1-0"]
[WhiteElo "2271"]
[BlackElo "1637"]
[TimeControl "180+2"]
[EndTime "16:01:28 PDT"]
[Termination "BvsN won on time"]

1. e4 {[%clk 0:03:01.9]} 1... c5 {[%clk 0:02:55.8]} 2. Nf3 {[%clk 0:03:01.8]}
2... Nc6 {[%clk 0:02:55.1]} 3. d3 {[%clk 0:03:00.7]} 3... Nf6 {[%clk 0:02:46.7]}
4. g3 {[%clk 0:02:59.4]} 4... e6 {[%clk 0:02:42.2]} 5. Bg2 {[%clk 0:02:59.3]}
5... Be7 {[%clk 0:02:42.5]} 6. O-O {[%clk 0:03:00.1]} 6... O-O {[%clk
0:02:43.2]} 7. Nbd2 {[%clk 0:02:53.9]} 7... b6 {[%clk 0:02:31.5]} 8. Re1 {[%clk
0:02:50]} 8... Bb7 {[%clk 0:02:16.5]} 9. Nf1 {[%clk 0:02:26]} 9... Re8 {[%clk
0:02:02.2]} 10. h4 {[%clk 0:02:24.1]} 10... d5 {[%clk 0:01:37.2]} 11. e5 {[%clk
0:02:25.2]} 11... Nd7 {[%clk 0:01:36]} 12. Bf4 {[%clk 0:02:25.2]} 12... Bf8
{[%clk 0:01:26.7]} 13. N1h2 {[%clk 0:02:20.5]} 13... f6 {[%clk 0:01:00.1]} 14.
exf6 {[%clk 0:01:54.6]} 1-0

[Event "*** Titled Tuesday Blitz"]
[Site "Chess.com"]
[Date "2019.04.02"]
[Round "9"]
[White "oskariot"]
[Black "chessdjw"]
[Result "0-1"]
[WhiteElo "2609"]
[BlackElo "2624"]
[TimeControl "180+2"]
[EndTime "16:01:34 PDT"]
[Termination "chessdjw won by resignation"]

1. b3 {[%clk 0:03:01.9]} 1... Nf6 {[%clk 0:02:57.5]} 2. Bb2 {[%clk 0:03:03.8]}
2... g6 {[%clk 0:02:58.2]} 3. g4 {[%clk 0:03:04.3]} 3... Bg7 {[%clk 0:02:58.6]}
4. g5 {[%clk 0:03:05.9]} 4... Nh5 {[%clk 0:03:00]} 5. Bxg7 {[%clk 0:03:07.8]}
5... Nxg7 {[%clk 0:03:01.8]} 6. e3 {[%clk 0:03:09.6]} 6... h6 {[%clk 0:03:00.6]}
7. gxh6 {[%clk 0:03:11.5]} 7... Rxh6 {[%clk 0:03:02.1]} 8. c4 {[%clk 0:03:13]}
8... d6 {[%clk 0:02:57.1]} 9. Nc3 {[%clk 0:03:13.9]} 9... e5 {[%clk 0:02:53.2]}
10. Qc2 {[%clk 0:03:12.7]} 10... Bf5 {[%clk 0:02:51.9]} 11. d3 {[%clk
0:03:11.4]} 11... Nc6 {[%clk 0:02:51.2]} 12. a3 {[%clk 0:03:09.8]} 12... a5
{[%clk 0:02:50.2]} 13. Nge2 {[%clk 0:03:06.8]} 13... Ne6 {[%clk 0:02:46.3]} 14.
Ng3 {[%clk 0:03:04.6]} 14... Bg4 {[%clk 0:02:38.2]} 15. Bg2 {[%clk 0:03:03.8]}
15... Ng5 {[%clk 0:02:30.7]} 16. Nd5 {[%clk 0:01:34.5]} 16... Nf3+ {[%clk
0:02:27.8]} 17. Bxf3 {[%clk 0:01:32.4]} 17... Bxf3 {[%clk 0:02:29.7]} 18. Rg1
{[%clk 0:01:34.3]} 18... Rxh2 {[%clk 0:02:29.2]} 19. Ne4 {[%clk 0:01:27.6]}
19... Kf8 {[%clk 0:02:20.8]} 20. Qc3 {[%clk 0:01:11.1]} 20... Ne7 {[%clk
0:02:14.8]} 21. Ndf6 {[%clk 0:01:11.5]} 21... Nf5 {[%clk 0:02:01.2]} 22. d4
{[%clk 0:00:52.1]} 22... exd4 {[%clk 0:01:56.6]} 23. exd4 {[%clk 0:00:50.6]}
23... Bxe4 {[%clk 0:01:57.3]} 24. Nxe4 {[%clk 0:00:51.1]} 24... Qh4 {[%clk
0:01:51.9]} 0-1

[Event "*** Titled Tuesday Blitz"]
[Site "Chess.com"]
[Date "2019.04.02"]
[Round "9"]
[White "Margency"]
[Black "ChainsOfFantasia"]
[Result "0-1"]
[WhiteElo "2675"]
[BlackElo "2483"]
[TimeControl "180+2"]
[EndTime "16:02:21 PDT"]
[Termination "ChainsOfFantasia won by resignation"]

1. d4 {[%clk 0:03:01.9]} 1... Nf6 {[%clk 0:03:00.7]} 2. c4 {[%clk 0:03:03.1]}
2... e6 {[%clk 0:03:02.3]} 3. Nf3 {[%clk 0:03:01]} 3... d5 {[%clk 0:03:03.4]} 4.
Nc3 {[%clk 0:03:01.1]} 4... dxc4 {[%clk 0:03:04.5]} 5. e4 {[%clk 0:03:00.7]}
5... Bb4 {[%clk 0:03:03.8]} 6. Bxc4 {[%clk 0:03:01.9]} 6... Nxe4 {[%clk
0:03:04.5]} 7. O-O {[%clk 0:03:03.1]} 7... Nxc3 {[%clk 0:03:05.8]} 8. bxc3
{[%clk 0:03:04.1]} 8... Be7 {[%clk 0:03:07.1]} 9. Qe2 {[%clk 0:03:02.4]} 9...
O-O {[%clk 0:03:06.8]} 10. Rd1 {[%clk 0:03:02.6]} 10... c5 {[%clk 0:03:02.9]}
11. Ne5 {[%clk 0:02:59.6]} 11... Nc6 {[%clk 0:02:56.1]} 12. Bf4 {[%clk
0:02:57.4]} 12... cxd4 {[%clk 0:02:40.8]} 13. cxd4 {[%clk 0:02:57]} 13... Nxe5
{[%clk 0:02:32.8]} 14. dxe5 {[%clk 0:02:53.4]} 14... Qa5 {[%clk 0:02:30.4]} 15.
Rd3 {[%clk 0:02:45.8]} 15... Rd8 {[%clk 0:02:17.3]} 16. Rg3 {[%clk 0:02:33.5]}
16... b5 {[%clk 0:02:05]} 17. Bd3 {[%clk 0:02:28.7]} 17... g6 {[%clk 0:01:54.8]}
18. h4 {[%clk 0:02:14.2]} 18... Bxh4 {[%clk 0:01:33.6]} 19. Rh3 {[%clk
0:02:14.3]} 19... Be7 {[%clk 0:01:34.4]} 20. Rxh7 {[%clk 0:02:06.6]} 20... Kxh7
{[%clk 0:01:24.9]} 21. Qh5+ {[%clk 0:02:06.7]} 21... Kg8 {[%clk 0:01:12.9]} 22.
Bxg6 {[%clk 0:02:07.4]} 22... fxg6 {[%clk 0:01:08.2]} 23. Qxg6+ {[%clk
0:02:08.5]} 23... Kh8 {[%clk 0:01:09.5]} 24. Kh2 {[%clk 0:01:50.1]} 24... Qb4
{[%clk 0:00:46.4]} 25. Qh6+ {[%clk 0:01:38.4]} 25... Kg8 {[%clk 0:00:46.5]} 26.
Qg6+ {[%clk 0:01:39.7]} 26... Kh8 {[%clk 0:00:47.4]} 27. Kg3 {[%clk 0:01:31.7]}
27... Bh4+ {[%clk 0:00:41.8]} 28. Kg4 {[%clk 0:01:31.8]} 28... Rg8 {[%clk
0:00:42.1]} 0-1

[Event "*** Titled Tuesday Blitz"]
[Site "Chess.com"]
[Date "2019.04.02"]
[Round "9"]
[White "Maili15"]
[Black "martinjogstad99"]
[Result "0-1"]
[WhiteElo "2265"]
[BlackElo "2241"]
[TimeControl "180+2"]
[EndTime "16:02:33 PDT"]
[Termination "martinjogstad99 won by checkmate"]

1. d4 {[%clk 0:03:01.9]} 1... d5 {[%clk 0:03:00.1]} 2. c4 {[%clk 0:03:03.1]}
2... c6 {[%clk 0:03:01]} 3. Nf3 {[%clk 0:03:03.6]} 3... Nf6 {[%clk 0:03:02.4]}
4. Nc3 {[%clk 0:03:04.6]} 4... dxc4 {[%clk 0:03:03.9]} 5. a4 {[%clk 0:03:05]}
5... e6 {[%clk 0:03:05.3]} 6. Ne5 {[%clk 0:03:00.4]} 6... c5 {[%clk 0:03:04.8]}
7. e3 {[%clk 0:02:58.7]} 7... cxd4 {[%clk 0:03:05.3]} 8. exd4 {[%clk 0:03:00.6]}
8... Bb4 {[%clk 0:02:58.7]} 9. Bxc4 {[%clk 0:03:00.3]} 9... O-O {[%clk
0:02:59.4]} 10. O-O {[%clk 0:03:00.4]} 10... Nbd7 {[%clk 0:02:55]} 11. Qb3
{[%clk 0:02:35.1]} 11... Qe7 {[%clk 0:02:30.2]} 12. Bg5 {[%clk 0:02:33.3]} 12...
a5 {[%clk 0:02:08.1]} 13. Ne4 {[%clk 0:01:44.5]} 13... h6 {[%clk 0:01:56.9]} 14.
Nxd7 {[%clk 0:01:43.9]} 14... hxg5 {[%clk 0:01:38.5]} 15. Nexf6+ {[%clk
0:01:43.7]} 15... gxf6 {[%clk 0:01:39.5]} 16. Nxf8 {[%clk 0:01:44.7]} 16... Qxf8
{[%clk 0:01:40.3]} 17. f4 {[%clk 0:01:38.2]} 17... Qd6 {[%clk 0:01:35.2]} 18.
Rad1 {[%clk 0:01:35.1]} 18... gxf4 {[%clk 0:01:30.7]} 19. Qf3 {[%clk 0:01:30.9]}
19... e5 {[%clk 0:01:26.2]} 20. dxe5 {[%clk 0:01:31.2]} 20... Qc5+ {[%clk
0:01:27.3]} 21. Kh1 {[%clk 0:01:27.7]} 21... Qxc4 {[%clk 0:01:28.3]} 22. Rd8+
{[%clk 0:01:24.8]} 22... Bf8 {[%clk 0:01:22.8]} 23. exf6 {[%clk 0:01:22.8]}
23... Ra6 {[%clk 0:01:03.5]} 24. Qh5 {[%clk 0:00:40.6]} 24... Qxf1# {[%clk
0:01:03.4]} 0-1

[Event "*** Titled Tuesday Blitz"]
[Site "Chess.com"]
[Date "2019.04.02"]
[Round "9"]
[White "albano87"]
[Black "europa2012"]
[Result "1-0"]
[WhiteElo "2345"]
[BlackElo "2129"]
[TimeControl "180+2"]
[EndTime "16:02:41 PDT"]
[Termination "albano87 won by resignation"]

1. e4 {[%clk 0:03:01.9]} 1... e6 {[%clk 0:03:00.6]} 2. d4 {[%clk 0:03:02.8]}
2... d5 {[%clk 0:03:02.2]} 3. Nc3 {[%clk 0:03:02.4]} 3... Nf6 {[%clk 0:03:03.2]}
4. Bg5 {[%clk 0:03:03.4]} 4... dxe4 {[%clk 0:03:03.3]} 5. Nxe4 {[%clk
0:03:04.1]} 5... Nbd7 {[%clk 0:03:04.5]} 6. Nf3 {[%clk 0:03:01.1]} 6... Be7
{[%clk 0:03:04.8]} 7. Nxf6+ {[%clk 0:03:02.1]} 7... Nxf6 {[%clk 0:03:06]} 8. Bd3
{[%clk 0:03:02.8]} 8... b6 {[%clk 0:03:07]} 9. Qe2 {[%clk 0:03:01.9]} 9... Bb7
{[%clk 0:03:07.6]} 10. O-O-O {[%clk 0:03:02.7]} 10... O-O {[%clk 0:03:07.2]} 11.
h4 {[%clk 0:03:00.1]} 11... Qd5 {[%clk 0:02:57.5]} 12. Kb1 {[%clk 0:03:00.8]}
12... c5 {[%clk 0:02:57.3]} 13. c4 {[%clk 0:02:37.9]} 13... Qd6 {[%clk
0:02:56.7]} 14. Bxf6 {[%clk 0:02:35.3]} 14... Bxf6 {[%clk 0:02:55.3]} 15. Bxh7+
{[%clk 0:02:35.2]} 15... Kxh7 {[%clk 0:02:46.8]} 16. Ng5+ {[%clk 0:02:35.6]}
16... Kg8 {[%clk 0:02:40.4]} 17. Qh5 {[%clk 0:02:35.3]} 17... Be4+ {[%clk
0:02:17.3]} 18. Nxe4 {[%clk 0:02:35.1]} 18... Qf4 {[%clk 0:02:17.2]} 19. Nxf6+
{[%clk 0:02:01.6]} 19... Qxf6 {[%clk 0:02:18]} 20. Qf3 {[%clk 0:01:53.2]} 20...
Qg6+ {[%clk 0:02:14]} 21. Ka1 {[%clk 0:01:43.6]} 21... Rad8 {[%clk 0:02:10.7]}
22. h5 {[%clk 0:01:44.4]} 22... Qh6 {[%clk 0:02:01.6]} 23. Qe3 {[%clk
0:01:40.7]} 23... cxd4 {[%clk 0:01:57.3]} 24. Rxd4 {[%clk 0:01:35.9]} 24... Qxe3
{[%clk 0:01:44.1]} 25. fxe3 {[%clk 0:01:35.5]} 25... Rxd4 {[%clk 0:01:45.7]} 26.
exd4 {[%clk 0:01:36.6]} 26... Rd8 {[%clk 0:01:45.8]} 27. Rd1 {[%clk 0:01:36.8]}
27... Kh7 {[%clk 0:01:47.3]} 28. b4 {[%clk 0:01:35.7]} 28... Kh6 {[%clk
0:01:47.7]} 29. Kb2 {[%clk 0:01:37.3]} 29... Kxh5 {[%clk 0:01:49]} 30. Kc3
{[%clk 0:01:38.3]} 30... Kg4 {[%clk 0:01:50.3]} 31. d5 {[%clk 0:01:39.3]} 31...
e5 {[%clk 0:01:45.6]} 32. c5 {[%clk 0:01:39.6]} 32... bxc5 {[%clk 0:01:45.8]}
33. bxc5 {[%clk 0:01:40.3]} 33... e4 {[%clk 0:01:46.9]} 34. d6 {[%clk 0:01:41]}
34... e3 {[%clk 0:01:46.4]} 35. Kd4 {[%clk 0:01:37.5]} 35... Kf4 {[%clk
0:01:43.9]} 36. Kd5 {[%clk 0:01:37.2]} 36... e2 {[%clk 0:01:42]} 37. Re1 {[%clk
0:01:37.5]} 37... Ke3 {[%clk 0:01:43.2]} 38. c6 {[%clk 0:01:37.9]} 38... Kd2
{[%clk 0:01:41.4]} 39. Rxe2+ {[%clk 0:01:38.2]} 39... Kxe2 {[%clk 0:01:42.8]}
40. c7 {[%clk 0:01:34.8]} 40... Rh8 {[%clk 0:01:42.2]} 41. d7 {[%clk 0:01:35]}
41... Kf2 {[%clk 0:01:43.7]} 42. d8=Q {[%clk 0:01:33.8]} 42... Rxd8+ {[%clk
0:01:44.9]} 43. cxd8=Q {[%clk 0:01:34]} 43... Kxg2 {[%clk 0:01:46.8]} 44. Qg8
{[%clk 0:01:32.9]} 44... g6 {[%clk 0:01:45.6]} 45. Qxf7 {[%clk 0:01:33.6]} 1-0

[Event "*** Titled Tuesday Blitz"]
[Site "Chess.com"]
[Date "2019.04.02"]
[Round "9"]
[White "aa175"]
[Black "AsaHoffmann"]
[Result "0-1"]
[WhiteElo "1927"]
[BlackElo "2182"]
[TimeControl "180+2"]
[EndTime "16:02:50 PDT"]
[Termination "AsaHoffmann won by resignation"]

1. e4 {[%clk 0:03:00.3]} 1... d6 {[%clk 0:02:59]} 2. d4 {[%clk 0:03:00.1]} 2...
Nf6 {[%clk 0:02:55.3]} 3. Nd2 {[%clk 0:02:58.4]} 3... c6 {[%clk 0:02:52.5]} 4.
c3 {[%clk 0:02:52.1]} 4... e5 {[%clk 0:02:51.9]} 5. Ngf3 {[%clk 0:02:44.3]} 5...
Qc7 {[%clk 0:02:47.5]} 6. Be2 {[%clk 0:02:36.9]} 6... Bg4 {[%clk 0:02:46.1]} 7.
O-O {[%clk 0:02:27]} 7... Nbd7 {[%clk 0:02:45.7]} 8. Re1 {[%clk 0:02:26.3]} 8...
Be7 {[%clk 0:02:45.8]} 9. h3 {[%clk 0:02:23.6]} 9... Bh5 {[%clk 0:02:46.2]} 10.
dxe5 {[%clk 0:02:17]} 10... dxe5 {[%clk 0:02:46.3]} 11. Qc2 {[%clk 0:02:18.1]}
11... O-O {[%clk 0:02:45.7]} 12. Nf1 {[%clk 0:02:15.9]} 12... Nc5 {[%clk
0:02:43.2]} 13. Ng3 {[%clk 0:02:15]} 13... Bg6 {[%clk 0:02:43.6]} 14. Bf1 {[%clk
0:02:08.6]} 14... Rfe8 {[%clk 0:02:42.5]} 15. Bg5 {[%clk 0:02:02.1]} 15... h6
{[%clk 0:02:41.9]} 16. Bxf6 {[%clk 0:02:01.5]} 16... Bxf6 {[%clk 0:02:42.3]} 17.
b4 {[%clk 0:02:02.3]} 17... Ne6 {[%clk 0:02:42.2]} 18. Bc4 {[%clk 0:01:51.7]}
18... Nf4 {[%clk 0:02:41.3]} 19. Nf5 {[%clk 0:01:43.4]} 19... b5 {[%clk
0:02:34.8]} 20. Bb3 {[%clk 0:01:34]} 20... a5 {[%clk 0:02:35]} 21. a3 {[%clk
0:01:27.5]} 21... c5 {[%clk 0:02:34]} 22. Rad1 {[%clk 0:01:11.1]} 22... cxb4
{[%clk 0:02:31.7]} 23. cxb4 {[%clk 0:01:13]} 23... Qxc2 {[%clk 0:02:30.4]} 24.
Bxc2 {[%clk 0:01:14.9]} 24... axb4 {[%clk 0:02:30.8]} 25. axb4 {[%clk
0:01:16.8]} 25... Rec8 {[%clk 0:02:26.3]} 26. Bb3 {[%clk 0:01:11.3]} 26... Ra3
{[%clk 0:02:25.7]} 27. Bd5 {[%clk 0:01:02.3]} 27... Nxh3+ {[%clk 0:02:16.2]} 28.
gxh3 {[%clk 0:00:58.3]} 28... Rxf3 {[%clk 0:02:15.9]} 29. Rc1 {[%clk 0:00:46.2]}
29... Rd8 {[%clk 0:02:11.7]} 30. Rc6 {[%clk 0:00:32.7]} 30... Bxf5 {[%clk
0:02:07.2]} 31. Rd1 {[%clk 0:00:23]} 31... Bxe4 {[%clk 0:02:03.8]} 32. Bxe4
{[%clk 0:00:19.7]} 32... Rxd1+ {[%clk 0:02:02.7]} 33. Kg2 {[%clk 0:00:19.7]}
33... Rf4 {[%clk 0:02:02]} 34. Rc8+ {[%clk 0:00:18.2]} 34... Rd8 {[%clk
0:02:01.1]} 35. Rxd8+ {[%clk 0:00:19.5]} 35... Bxd8 {[%clk 0:02:01.2]} 36. Bc6
{[%clk 0:00:21.4]} 36... Rxb4 {[%clk 0:02:00.2]} 37. Bd7 {[%clk 0:00:23.3]}
37... Kf8 {[%clk 0:01:56.5]} 38. Bc8 {[%clk 0:00:25.2]} 38... Ke7 {[%clk
0:01:56.1]} 39. Bb7 {[%clk 0:00:27.1]} 39... Bb6 {[%clk 0:01:55.9]} 40. Bf3
{[%clk 0:00:29]} 40... f5 {[%clk 0:01:55.7]} 41. Bd5 {[%clk 0:00:30.9]} 41...
Rb2 {[%clk 0:01:55.1]} 42. Bf7 {[%clk 0:00:32.8]} 0-1

[Event "*** Titled Tuesday Blitz"]
[Site "Chess.com"]
[Date "2019.04.02"]
[Round "9"]
[White "RayRobson"]
[Black "champ2005"]
[Result "1-0"]
[WhiteElo "2869"]
[BlackElo "2803"]
[TimeControl "180+2"]
[EndTime "16:03:27 PDT"]
[Termination "RayRobson won by resignation"]

1. c4 {[%clk 0:03:00.7]} 1... Nf6 {[%clk 0:03:00.4]} 2. Nc3 {[%clk 0:03:00.6]}
2... g6 {[%clk 0:03:02.3]} 3. g3 {[%clk 0:02:59.1]} 3... Bg7 {[%clk 0:03:02.6]}
4. Bg2 {[%clk 0:03:00.6]} 4... O-O {[%clk 0:03:03.7]} 5. Nf3 {[%clk 0:03:01.9]}
5... c5 {[%clk 0:03:02.3]} 6. d4 {[%clk 0:02:55.6]} 6... cxd4 {[%clk 0:03:03.2]}
7. Nxd4 {[%clk 0:02:52.7]} 7... Nc6 {[%clk 0:03:04.3]} 8. O-O {[%clk 0:02:50.6]}
8... Qa5 {[%clk 0:03:05.3]} 9. Nb3 {[%clk 0:02:44.5]} 9... Qh5 {[%clk
0:03:05.5]} 10. Nd5 {[%clk 0:02:42.3]} 10... d6 {[%clk 0:02:55.6]} 11. Nf4
{[%clk 0:02:31]} 11... Qf5 {[%clk 0:02:56.2]} 12. Bd2 {[%clk 0:02:09.9]} 12...
Ne4 {[%clk 0:02:50.3]} 13. Nd5 {[%clk 0:01:19.5]} 13... Bxb2 {[%clk 0:02:38.1]}
14. Bh6 {[%clk 0:00:54.9]} 14... Bxa1 {[%clk 0:02:13.8]} 15. Qxa1 {[%clk
0:00:54.9]} 15... Nf6 {[%clk 0:02:11.8]} 16. Nd4 {[%clk 0:00:51.1]} 16... Qh5
{[%clk 0:00:53.5]} 17. Nxc6 {[%clk 0:00:51.5]} 17... Qxh6 {[%clk 0:00:54.2]} 18.
Ncxe7+ {[%clk 0:00:50.2]} 18... Kh8 {[%clk 0:00:55.4]} 19. Qxf6+ {[%clk
0:00:47.5]} 19... Qg7 {[%clk 0:00:56.9]} 20. Qxd6 {[%clk 0:00:38]} 20... Be6
{[%clk 0:00:57.1]} 21. Qb4 {[%clk 0:00:26.3]} 21... Qe5 {[%clk 0:00:44.9]} 22.
Qxb7 {[%clk 0:00:22.7]} 22... Qxe2 {[%clk 0:00:43.4]} 23. Nf4 {[%clk 0:00:16.3]}
23... Qxc4 {[%clk 0:00:30.7]} 24. Qb2+ {[%clk 0:00:16.1]} 24... f6 {[%clk
0:00:31.9]} 25. Bxa8 {[%clk 0:00:13]} 1-0

[Event "*** Titled Tuesday Blitz"]
[Site "Chess.com"]
[Date "2019.04.02"]
[Round "9"]
[White "j2806"]
[Black "VeraNebolsina"]
[Result "1-0"]
[WhiteElo "1759"]
[BlackElo "2362"]
[TimeControl "180+2"]
[EndTime "16:03:30 PDT"]
[Termination "j2806 won by resignation"]

1. e4 {[%clk 0:02:58.5]} 1... c5 {[%clk 0:02:58.6]} 2. Nf3 {[%clk 0:02:57.5]}
2... d6 {[%clk 0:02:58.8]} 3. d4 {[%clk 0:02:58.4]} 3... cxd4 {[%clk 0:02:59.2]}
4. Nxd4 {[%clk 0:02:59.6]} 4... Nf6 {[%clk 0:03:01.1]} 5. Nc3 {[%clk 0:02:59.4]}
5... a6 {[%clk 0:03:02.4]} 6. Be3 {[%clk 0:02:44.9]} 6... e5 {[%clk 0:03:00.2]}
7. Nb3 {[%clk 0:02:44.7]} 7... Be7 {[%clk 0:03:01.3]} 8. f3 {[%clk 0:02:29.6]}
8... O-O {[%clk 0:02:57.5]} 9. Qd2 {[%clk 0:02:20.2]} 9... Be6 {[%clk
0:02:55.7]} 10. O-O-O {[%clk 0:02:13.8]} 10... Nbd7 {[%clk 0:02:55.8]} 11. g4
{[%clk 0:02:06.2]} 11... b5 {[%clk 0:02:55.1]} 12. h4 {[%clk 0:02:06.3]} 12...
b4 {[%clk 0:02:46.4]} 13. Ne2 {[%clk 0:02:04.4]} 13... a5 {[%clk 0:02:44.4]} 14.
h5 {[%clk 0:02:03.5]} 14... a4 {[%clk 0:02:44.1]} 15. Na1 {[%clk 0:01:55.7]}
15... a3 {[%clk 0:02:05.4]} 16. b3 {[%clk 0:01:43.2]} 16... d5 {[%clk
0:02:00.5]} 17. g5 {[%clk 0:01:37.4]} 17... d4 {[%clk 0:02:01.5]} 18. Nxd4
{[%clk 0:01:24.3]} 18... exd4 {[%clk 0:02:01.4]} 19. Qxd4 {[%clk 0:01:21]} 19...
Bc5 {[%clk 0:01:58.5]} 20. Qxc5 {[%clk 0:01:11.4]} 20... Nxc5 {[%clk 0:01:32.8]}
21. Rxd8 {[%clk 0:01:08.4]} 21... Rfxd8 {[%clk 0:01:34.2]} 22. Bxc5 {[%clk
0:01:03.4]} 22... Nd7 {[%clk 0:01:06.8]} 23. Bxb4 {[%clk 0:01:01.5]} 23... Ne5
{[%clk 0:01:07.9]} 24. Be2 {[%clk 0:00:59.5]} 24... Nc6 {[%clk 0:01:08.1]} 25.
Bd2 {[%clk 0:00:56.3]} 25... Nd4 {[%clk 0:01:08.6]} 26. Re1 {[%clk 0:00:54.2]}
26... Rac8 {[%clk 0:01:05.3]} 27. c4 {[%clk 0:00:53.4]} 27... Nc6 {[%clk
0:00:52.7]} 28. Nc2 {[%clk 0:00:53.2]} 28... Ra8 {[%clk 0:00:51.7]} 29. Rd1
{[%clk 0:00:51.2]} 29... Ne5 {[%clk 0:00:50.5]} 30. Be3 {[%clk 0:00:50.6]} 30...
Bh3 {[%clk 0:00:48.7]} 31. Nd4 {[%clk 0:00:49.1]} 31... Bg2 {[%clk 0:00:47.1]}
32. Rg1 {[%clk 0:00:47.2]} 32... Bh3 {[%clk 0:00:43.4]} 33. Rg3 {[%clk
0:00:45.9]} 33... Be6 {[%clk 0:00:42.9]} 34. f4 {[%clk 0:00:44.6]} 34... Nd7
{[%clk 0:00:41.2]} 35. f5 {[%clk 0:00:44]} 1-0